bitfinex/quotes_SOLUSD_20260115
["timestamp","ask_amount","ask_price","bid_price","bid_amount"]
[1768487893659,10.7269732,144.22,144.18,1.3721283]
[1768487894081,6.93378381,144.23,144.18,1.3721283]
[1768487894273,7.78941864,144.24,144.18,8.30784595]
[1768487894453,6.93306269,144.24,144.18,8.30784595]
[1768487894656,17.66003589,144.24,144.18,19.03481915]
[1768487894879,10.7269732,144.23,144.18,8.30784595]
[1768487895069,6.93306269,144.24,144.2,8.30694106]
[1768487895070,10.7269732,144.24,144.2,8.30694106]
[1768487895376,10.7269732,144.26,144.21,1.3721283]
[1768487895960,10.7269732,144.26,144.2,17.66178596]
[1768487895961,10.7269732,144.24,144.2,8.30694106]
[1768487896355,0.79325238,144.25,144.18,1.3721283]
[1768487896559,10.7269732,144.24,144.2,1.3721283]
[1768487896970,10.7269732,144.25,144.2,1.3721283]
[1768487897165,10.7269732,144.25,144.21,1.3721283]
[1768487897384,10.7269732,144.23,144.19,1.3721283]
[1768487897661,10.7269732,144.22,144.16,8.30874207]
[1768487897875,24.26174961,144.26,144.16,8.30874207]
[1768487897876,10.7269732,144.2,144.16,8.30874207]
[1768487898256,13.41792688,144.23,144.16,1.3721283]
[1768487898490,10.7269732,144.21,144.17,8.30823159]
[1768487898664,10.7269732,144.21,144.17,1.3721283]
[1768487898860,10.7269732,144.18,144.14,1.3721283]
[1768487899089,6.93633141,144.17,144.13,0.1]
[1768487899272,10.7269732,144.16,144.13,0.1]
[1768487899585,6.59806525,144.14,144.13,0.1]
[1768487899774,0.74780193,144.16,144.08,1.3721283]
[1768487900082,6.59806525,144.14,144.1,1.3721283]
[1768487900268,6.59806525,144.13,144.1,1.3721283]
[1768487900680,6.59806525,144.13,144.08,1.3721283]
[1768487900883,6.59806525,144.12,144.08,1.3721283]
[1768487901180,6.59806525,144.11,144.08,1.3721283]
[1768487901482,6.59806525,144.11,144.07,7.99481517]
[1768487901681,6.93777236,144.14,144.09,1.05381376]
[1768487901889,19.57739603,144.15,144.09,1.05381376]
[1768487902074,6.59806525,144.12,144.08,6.94040961]
[1768487902275,6.59806525,144.11,144.07,7.99474686]
[1768487902484,6.59806525,144.1,144.07,7.99474686]
[1768487902888,6.59806525,144.1,144.06,6.94137814]
[1768487903078,6.59806525,144.11,144.07,6.94107031]
[1768487903385,7.62787445,144.13,144.06,7.99517647]
[1768487903386,6.59806525,144.1,144.06,7.99517647]
[1768487903691,20.25464568,144.11,144.04,7.99585455]
[1768487903866,37.60250495,144.11,144.04,7.99585455]
[1768487904066,19.57918015,144.11,144.05,0.9970187]
[1768487904267,19.23806525,144.11,144.07,0.9970187]
[1768487904687,12.64,144.11,144.08,0.9970187]
[1768487904983,12.64,144.14,144.08,0.9970187]
[1768487905287,19.23806525,144.14,144.1,0.9970187]
[1768487906095,19.23806525,144.14,144.03,5.48625013]
[1768487906096,0.63402733,144.13,144.06,0.9970187]
[1768487906294,0.63402733,144.13,144.08,6.94050534]
[1768487906472,6.59806525,144.12,144.08,6.94050534]
[1768487906791,6.59806525,144.12,144.08,7.93752404]
[1768487906992,6.59806525,144.12,144.08,0.9970187]
[1768487907199,6.59806525,144.1,144.06,0.9970187]
[1768487907379,6.9391437,144.11,144.06,0.9970187]
[1768487907573,6.59806525,144.1,144.06,0.9970187]
[1768487908075,6.93882942,144.12,144.06,0.9970187]
[1768487908280,6.93756785,144.15,144.08,0.9970187]
[1768487908491,0.59400067,144.16,144.1,0.9970187]
[1768487908492,19.59704565,144.16,144.1,0.9970187]
[1768487908699,12.66,144.16,144.11,0.9970187]
[1768487908871,20.1911065,144.16,144.07,0.9970187]
[1768487909071,20.1911065,144.16,144.09,7.93688522]
[1768487909072,6.59806525,144.13,144.09,7.93688522]
[1768487909297,13.53631701,144.13,144.09,0.9970187]
[1768487909473,13.53631701,144.13,144.07,17.35237501]
[1768487909474,6.59806525,144.12,144.07,0.9970187]
[1768487909675,6.59806525,144.12,144.07,7.93804905]
[1768487909894,6.59806525,144.12,144.07,0.9970187]
[1768487910194,6.59806525,144.11,144.07,7.93773344]
[1768487910695,6.93825176,144.13,144.08,6.94054409]
[1768487910888,0.56807661,144.15,144.06,24.94779014]
[1768487911094,6.59806525,144.12,144.07,0.9970187]
[1768487911290,6.59806525,144.12,144.08,25.28866702]
[1768487911496,6.59806525,144.14,144.09,0.9970187]
[1768487911797,6.59806525,144.13,144.08,7.93719562]
[1768487912008,6.59806525,144.13,144.06,17.35336663]
[1768487912009,6.59806525,144.1,144.06,6.9413856]
[1768487912202,6.59806525,144.1,144.05,7.93901486]
[1768487912699,24.82334837,144.15,144.07,7.93779768]
[1768487912880,6.59806525,144.11,144.07,7.93779768]
[1768487913595,6.59806525,144.12,144.07,7.93779768]
[1768487913801,17.34304543,144.15,144.08,0.9970187]
[1768487914002,12.66,144.15,144.08,6.59806525]
[1768487914189,6.59806525,144.14,144.09,0.9970187]
[1768487914701,12.66,144.15,144.09,0.9970187]
[1768487915003,6.59806525,144.14,144.11,0.9970187]
[1768487915212,12.66,144.15,144.11,0.9970187]
[1768487915676,6.59806525,144.14,144.11,0.9970187]
[1768487916076,0.50582741,144.2,144.12,0.9970187]
[1768487916295,19.5952937,144.19,144.12,0.9970187]
[1768487916498,6.59806525,144.16,144.12,0.9970187]
[1768487916698,19.5952937,144.19,144.12,0.9970187]
[1768487917003,12.66,144.19,144.14,0.9970187]
[1768487917200,12.66,144.19,144.15,0.9970187]
[1768487917201,6.59806525,144.17,144.15,0.9970187]
[1768487917518,0.48191723,144.18,144.11,7.93609966]
[1768487917678,6.59806525,144.15,144.11,7.93609966]
[1768487918183,6.59806525,144.14,144.1,6.93959241]
[1768487918383,6.59806525,144.13,144.08,6.94029595]
[1768487918711,6.59806525,144.09,144.05,0.9970187]
[1768487918887,0.47016771,144.08,143.99,1e-08]
[1768487919076,0.37016771,143.99,143.95,0.2878859]
[1768487919788,0.37016771,143.99,143.89,18.37118265]
[1768487919789,0.07066725,143.97,143.89,18.37118265]
[1768487920090,6.59806525,143.95,143.91,7.9457682]
[1768487920292,6.59806525,143.94,143.91,7.94561339]
[1768487920513,6.94540908,143.98,143.91,0.9970187]
[1768487920677,6.94503085,143.99,143.92,0.9970187]
[1768487920995,12.66,143.99,143.92,0.9970187]
[1768487921212,6.94454201,144.0,143.91,6.94874675]
[1768487921213,12.66,144.01,143.94,0.9970187]
[1768487921403,19.60331916,144.03,143.95,0.9970187]
[1768487921578,6.59806525,144.0,143.95,0.9970187]
[1768487921779,6.59806525,143.99,143.95,0.9970187]
[1768487921985,24.35001706,144.02,143.95,0.9970187]
[1768487922202,6.59806525,143.98,143.95,0.9970187]
[1768487922513,6.59806525,143.97,143.95,0.9970187]
[1768487922676,25.31551477,144.02,143.93,7.94446318]
[1768487922677,1.01333452,144.01,143.93,7.94446318]
[1768487922880,6.59806525,143.98,143.93,7.94446318]
[1768487923381,1.01333452,144.01,143.95,0.9970187]
[1768487923584,13.67333452,144.01,143.95,0.9970187]
[1768487923802,6.59806525,143.98,143.95,0.9970187]
[1768487923994,12.66,144.01,143.96,0.9970187]
[1768487924314,6.94155213,144.06,143.96,6.59806525]
[1768487924480,6.59806525,144.02,143.95,24.31399531]
[1768487924807,6.94155213,144.06,143.96,6.59806525]
[1768487924808,7.95488665,144.06,143.96,6.59806525]
[1768487925012,6.59806525,144.02,143.95,36.97399531]
[1768487925309,7.95488665,144.06,143.95,6.94685395]
[1768487925310,13.67333452,144.03,143.95,6.94685395]
[1768487925823,6.59806525,144.0,143.95,6.94685395]
[1768487925983,6.59806525,143.99,143.94,6.94733383]
[1768487926185,6.59806525,143.98,143.94,7.94435253]
[1768487926516,6.59806525,143.98,143.95,0.9970187]
[1768487927084,6.59806525,143.99,143.95,0.9970187]
[1768487927488,6.9428582,144.04,143.95,0.9970187]
[1768487927691,6.59806525,144.02,143.96,0.9970187]
[1768487927996,6.59806525,144.01,143.98,0.9970187]
[1768487928193,7.59981445,143.99,143.92,0.9970187]
[1768487928401,1.0017492,143.99,143.92,0.9970187]
[1768487928594,6.59806525,143.95,143.92,0.9970187]
[1768487928796,12.66,144.0,143.93,0.9970187]
[1768487929384,6.59806525,143.99,143.94,0.9970187]
[1768487929586,12.66,144.0,143.94,0.9970187]
[1768487929791,12.66,144.02,143.94,0.9970187]
[1768487930016,12.66,144.02,143.9,34.74603811]
[1768487930017,6.59806525,143.95,143.9,18.37000077]
[1768487930310,0.9914018,143.98,143.83,34.02953616]
[1768487930311,6.59806525,143.93,143.89,7.94641129]
[1768487930509,0.98117325,143.96,143.89,7.94641129]
[1768487930716,0.85978023,143.98,143.9,0.86370495]
[1768487930912,13.51978023,143.98,143.9,0.86370495]
[1768487931209,13.51978023,143.98,143.83,55.64564201]
[1768487931210,0.85978023,143.95,143.88,0.86370495]
[1768487931393,6.59806525,143.93,143.88,0.86370495]
[1768487932085,6.59806525,143.93,143.88,7.81379706]
[1768487932312,7.80669532,143.95,143.88,0.86370495]
[1768487932812,6.59806525,143.95,143.89,0.86370495]
[1768487933012,6.59806525,143.95,143.88,13.54800523]
[1768487933013,6.59806525,143.95,143.9,0.86370495]
[1768487933194,6.59806525,143.94,143.9,0.86370495]
[1768487933514,6.59806525,143.96,143.9,0.86370495]
[1768487933908,13.51978023,143.97,143.9,0.86370495]
[1768487934096,7.80502978,143.99,143.92,0.86370495]
[1768487934298,6.59806525,143.97,143.92,0.86370495]
[1768487934988,7.8047449,143.99,143.9,0.86370495]
[1768487934989,6.59806525,143.94,143.9,0.86370495]
[1768487935415,24.44944306,143.99,143.88,7.81388747]
[1768487935416,6.59806525,143.93,143.88,7.81388747]
[1768487935612,6.59806525,143.93,143.88,0.86370495]
[1768487935812,0.85978023,143.95,143.88,7.81391314]
[1768487936109,6.59806525,143.91,143.88,0.86370495]
[1768487936313,6.59806525,143.92,143.88,0.86370495]
[1768487936500,6.59806525,143.92,143.88,7.81381859]
[1768487936703,6.59806525,143.93,143.89,0.86370495]
[1768487937219,6.94699299,143.95,143.87,7.81424874]
[1768487937220,0.85978023,143.94,143.87,7.81424874]
[1768487937406,6.59806525,143.93,143.88,7.81382186]
[1768487938102,6.59806525,143.93,143.88,0.86370495]
[1768487938309,13.51978023,143.96,143.9,0.86370495]
[1768487938504,6.59806525,143.95,143.88,14.41200257]
[1768487938713,6.59806525,143.95,143.89,0.86370495]
[1768487938901,13.51978023,143.96,143.9,0.86370495]
[1768487939218,12.66,143.96,143.91,0.86370495]
[1768487939419,12.66,143.96,143.89,0.86370495]
[1768487939420,20.46616377,143.96,143.89,0.86370495]
[1768487939586,6.59806525,143.95,143.89,0.86370495]
[1768487939786,20.11784548,143.96,143.9,0.86370495]
[1768487940000,12.66,143.96,143.91,7.4617702]
[1768487940193,12.66,143.96,143.92,7.81200956]
[1768487940502,0.85978023,143.98,143.92,0.86370495]
[1768487940815,6.59806525,143.97,143.91,7.81237088]
[1768487940989,0.85978023,143.95,143.89,0.86370495]
[1768487941190,6.59806525,143.94,143.89,0.86370495]
[1768487941436,0.85978023,143.99,143.91,7.4617702]
[1768487941589,36.96572037,144.0,143.91,0.86370495]
[1768487941590,0.85978023,143.98,143.91,0.86370495]
[1768487941793,0.85978023,143.95,143.88,0.86370495]
[1768487942116,0.85978023,143.95,143.89,0.86370495]
[1768487942117,7.45784548,143.95,143.89,0.86370495]
[1768487942316,7.45784548,143.95,143.89,7.4617702]
[1768487942616,6.59806525,143.92,143.87,0.86370495]
[1768487942809,6.59806525,143.89,143.85,6.95168504]
[1768487943009,0.85841724,143.85,143.81,3.60950262]
[1768487943201,6.59806525,143.82,143.75,55.1038829]
[1768487943515,6.59806525,143.76,143.75,16.72391604]
[1768487943723,0.858,143.78,143.75,16.72391604]
[1768487943934,6.59806525,143.76,143.75,16.72391604]
[1768487944219,6.59806525,143.76,143.69,6.59806525]
[1768487944220,6.95603784,143.76,143.67,0.86370495]
[1768487944411,12.66,143.75,143.66,0.4495199]
[1768487944610,6.59806525,143.74,143.69,6.95941417]
[1768487944797,12.66,143.75,143.7,0.86370495]
[1768487944998,0.858,143.78,143.73,0.86370495]
[1768487945414,0.858,143.78,143.69,24.35798052]
[1768487945415,0.858,143.78,143.7,0.86370495]
[1768487945715,4.47335344,143.86,143.74,0.86370495]
[1768487945899,4.47335344,143.86,143.75,0.86370495]
[1768487945900,37.1530618,143.85,143.75,0.86370495]
[1768487946095,6.59806525,143.78,143.75,0.86370495]
[1768487946412,37.1530618,143.85,143.75,0.86370495]
[1768487946589,0.14216157,143.84,143.73,0.86370495]
[1768487946789,6.59806525,143.79,143.73,0.86370495]
[1768487946994,0.14216157,143.84,143.73,0.86370495]
[1768487947189,6.59806525,143.81,143.76,0.86370495]
[1768487947397,17.15335344,143.86,143.78,0.86370495]
[1768487947619,17.15335344,143.86,143.79,0.86370495]
[1768487947824,41.48268758,143.86,143.76,0.86370495]
[1768487948123,6.59806525,143.77,143.7,7.4617702]
[1768487948332,6.59806525,143.77,143.73,6.95748973]
[1768487948825,6.59806525,143.74,143.67,0.86370495]
[1768487949128,0.14216157,143.74,143.66,7.41039409]
[1768487949328,0.14216157,143.74,143.66,8.27409904]
[1768487949514,12.68,143.75,143.67,0.86370495]
[1768487949821,0.14216157,143.78,143.69,0.86370495]
[1768487950030,12.68,143.77,143.69,0.86370495]
[1768487950219,0.14216157,143.75,143.67,0.86370495]
[1768487950419,6.59806525,143.71,143.66,7.41039409]
[1768487950724,6.59806525,143.71,143.67,6.960234]
[1768487950928,12.68,143.77,143.68,0.86370495]
[1768487951103,6.59806525,143.74,143.68,0.86370495]
[1768487951303,12.68,143.77,143.69,0.86370495]
[1768487951503,12.68,143.77,143.7,0.86370495]
[1768487951706,6.59806525,143.75,143.72,0.86370495]
[1768487951927,6.59806525,143.8,143.68,0.86370495]
[1768487952131,6.59806525,143.7,143.66,8.27403964]
[1768487952305,6.95789415,143.73,143.66,8.27403964]
[1768487952512,6.59806525,143.69,143.66,0.4495199]
[1768487952707,6.59806525,143.7,143.66,7.4103382]
[1768487952907,12.68,143.74,143.67,0.86370495]
[1768487953426,6.59806525,143.73,143.68,0.86370495]
[1768487953736,6.59806525,143.72,143.68,0.86370495]
[1768487953919,6.59806525,143.7,143.66,0.4495199]
[1768487954314,37.02969407,143.74,143.66,8.27390655]
[1768487954514,6.59806525,143.7,143.66,0.4495199]
[1768487954723,0.14216157,143.73,143.66,0.4495199]
[1768487954930,6.59806525,143.69,143.66,0.4495199]
[1768487955238,6.59806525,143.7,143.66,7.41031218]
[1768487955418,19.63717981,143.74,143.66,7.41031218]
[1768487955605,19.63717981,143.74,143.66,0.4495199]
[1768487955810,37.02969407,143.74,143.66,0.4495199]
[1768487956105,37.02969407,143.74,143.66,8.27402413]
[1768487956307,6.59806525,143.7,143.66,8.27402413]
[1768487956614,6.59806525,143.72,143.67,0.86370495]
[1768487956812,12.68,143.75,143.68,0.86370495]
[1768487957033,6.59806525,143.73,143.68,0.86370495]
[1768487957339,17.3878548,143.78,143.69,0.86370495]
[1768487957538,41.37032659,143.8,143.69,0.86370495]
[1768487957539,6.59806525,143.76,143.7,0.86370495]
[1768487957718,6.59806525,143.73,143.7,0.86370495]
[1768487958033,12.68,143.77,143.67,0.86370495]
[1768487958234,12.68,143.77,143.66,0.4495199]
[1768487958235,0.14216157,143.76,143.66,0.4495199]
[1768487958438,6.59806525,143.69,143.66,0.4495199]
[1768487958637,12.68,143.72,143.66,1.31322485]
[1768487958944,6.59806525,143.7,143.66,1.31322485]
[1768487959324,6.59806525,143.7,143.66,0.4495199]
[1768487959525,12.68,143.72,143.67,0.86370495]
[1768487959829,6.59806525,143.71,143.67,0.86370495]
[1768487960332,19.6379787,143.72,143.67,0.86370495]
[1768487960536,6.59806525,143.69,143.66,0.4495199]
[1768487960925,6.59806525,143.69,143.66,1.22636923]
[1768487961129,6.59806525,143.7,143.67,0.77684933]
[1768487961331,12.68,143.72,143.67,0.77684933]
[1768487962115,10.7909463,143.71,143.67,0.77684933]
[1768487962319,10.7909463,143.69,143.66,0.4495199]
[1768487962853,10.7909463,143.69,143.66,1.22636923]
[1768487963218,12.68,143.72,143.67,0.77684933]
[1768487963548,10.7909463,143.69,143.67,0.77684933]
[1768487963734,12.68,143.72,143.67,0.77684933]
[1768487963942,10.7909463,143.7,143.67,0.77684933]
[1768487964114,19.63806257,143.72,143.67,0.77684933]
[1768487964316,10.7909463,143.68,143.59,0.39417622]
[1768487964636,10.7909463,143.65,143.6,0.74717571]
[1768487964816,12.68,143.67,143.61,0.74717571]
[1768487965025,12.68,143.67,143.6,0.74717571]
[1768487965026,10.7909463,143.67,143.6,0.74717571]
[1768487965232,10.7909463,143.67,143.62,0.74717571]
[1768487965439,10.7909463,143.65,143.62,0.74717571]
[1768487966489,10.7909463,143.65,143.6,0.74717571]
[1768487966661,10.7909463,143.66,143.62,0.74717571]
[1768487966818,12.68,143.68,143.62,0.74717571]
[1768487967013,10.7909463,143.67,143.62,0.74717571]
[1768487967244,10.7909463,143.66,143.62,0.74717571]
[1768487967434,10.7909463,143.66,143.61,24.37156186]
[1768487967435,10.7909463,143.63,143.6,0.74717571]
[1768487967621,10.7909463,143.63,143.6,7.71085174]
[1768487967939,0.14216157,143.67,143.6,0.74717571]
[1768487968138,10.7909463,143.64,143.6,0.74717571]
[1768487968347,12.7,143.64,143.59,0.39417622]
[1768487968518,12.7,143.64,143.59,7.35811506]
[1768487968840,10.7909463,143.7,143.61,0.74717571]
[1768487968841,12.7,143.65,143.61,0.74717571]
[1768487969042,10.7909463,143.66,143.61,0.74717571]
[1768487969242,12.7,143.67,143.61,0.74717571]
[1768487969433,6.95941464,143.7,143.62,0.74717571]
[1768487969636,23.4909463,143.68,143.62,0.74717571]
[1768487969834,10.7909463,143.67,143.62,0.74717571]
[1768487970141,12.7,143.68,143.62,0.74717571]
[1768487970538,12.7,143.68,143.6,24.37296335]
[1768487970539,12.7,143.68,143.64,0.74717571]
[1768487970744,12.7,143.68,143.66,0.74717571]
[1768487971141,23.4909463,143.68,143.64,0.74717571]
[1768487971340,23.4909463,143.68,143.61,17.40774374]
[1768487971341,10.7909463,143.67,143.62,6.96265375]
[1768487971523,10.7909463,143.67,143.63,0.74717571]
[1768487971727,12.7,143.68,143.64,0.74717571]
[1768487971942,23.4909463,143.68,143.64,0.74717571]
[1768487972552,12.7,143.68,143.65,0.74717571]
[1768487972845,12.7,143.68,143.65,7.70851046]
[1768487973037,35.68394763,143.76,143.66,0.74717571]
[1768487973038,10.7909463,143.7,143.66,0.74717571]
[1768487973821,23.4909463,143.72,143.67,0.74717571]
[1768487974040,10.7909463,143.71,143.67,0.74717571]
[1768487974638,10.7909463,143.71,143.68,0.74717571]
[1768487974839,12.7,143.72,143.68,0.74717571]
[1768487975266,0.90200001,143.76,143.69,0.74717571]
[1768487975434,12.7,143.75,143.69,0.74717571]
[1768487975631,0.90200001,143.76,143.71,0.74717571]
[1768487976240,0.90200001,143.76,143.72,0.74717571]
[1768487976770,0.90200001,143.76,143.73,0.74717571]
[1768487977123,10.7909463,143.75,143.71,0.74717571]
[1768487977562,11.69294631,143.76,143.72,0.74717571]
[1768487977784,0.90200001,143.76,143.73,0.74717571]
[1768487979036,0.90200001,143.76,143.73,6.95738168]
[1768487979254,0.90200001,143.76,143.74,0.74717571]
[1768487979852,11.69294631,143.76,143.72,0.74717571]
[1768487980252,11.69294631,143.76,143.72,7.70511373]
[1768487980561,6.95168578,143.85,143.75,0.74717571]
[1768487980743,10.7909463,143.8,143.76,0.74717571]
[1768487981161,4.32887856,143.82,143.76,0.74717571]
[1768487981360,10.7909463,143.81,143.76,0.74717571]
[1768487981550,10.7909463,143.81,143.76,7.70305995]
[1768487981749,11.54235428,143.81,143.76,7.70305995]
[1768487981948,0.75140798,143.81,143.77,0.74717571]
[1768487982152,0.72054898,143.8,143.77,0.74717571]
[1768487982663,0.72054898,143.8,143.78,0.74717571]
[1768487984274,23.4909463,143.84,143.79,0.74717571]
[1768487984442,12.7,143.84,143.79,0.74717571]
[1768487984637,23.98292301,143.84,143.77,0.74717571]
[1768487984861,10.7909463,143.81,143.77,0.74717571]
[1768487985170,10.7909463,143.82,143.77,0.74717571]
[1768487985393,7.37141621,143.83,143.77,0.74717571]
[1768487985786,10.7909463,143.79,143.73,0.74717571]
[1768487985993,12.68,143.79,143.73,0.74717571]
[1768487986173,23.4709463,143.79,143.73,0.74717571]
[1768487986373,12.68,143.79,143.74,0.74717571]
[1768487986576,10.7909463,143.81,143.77,0.74717571]
[1768487986970,23.4709463,143.82,143.77,0.74717571]
[1768487987173,0.71166998,143.83,143.79,0.74717571]
[1768487988415,0.71166998,143.83,143.77,0.74717571]
[1768487988416,11.50261628,143.83,143.77,0.74717571]
[1768487988569,11.50261628,143.83,143.77,7.70262031]
[1768487988771,10.7909463,143.8,143.74,18.13879714]
[1768487989021,10.7909463,143.78,143.74,0.74717571]
[1768487989389,13.07810145,143.8,143.74,7.70416905]
[1768487989570,23.86904775,143.8,143.74,7.70416905]
[1768487989766,10.7909463,143.79,143.74,7.70416905]
[1768487990008,13.07810145,143.8,143.74,7.70416905]
[1768487990173,23.4709463,143.8,143.75,0.74717571]
[1768487990579,12.68,143.8,143.75,0.74717571]
[1768487990984,12.68,143.8,143.75,7.70353534]
[1768487991187,10.7909463,143.79,143.73,7.6082555]
[1768487991385,10.7909463,143.79,143.74,6.95698241]
[1768487991671,10.7909463,143.78,143.71,0.65094677]
[1768487991970,0.37845337,143.78,143.72,7.60891777]
[1768487992170,10.7909463,143.79,143.72,10.7909463]
[1768487992388,10.7909463,143.79,143.73,0.65094677]
[1768487992566,10.7909463,143.78,143.73,0.65094677]
[1768487992769,20.01260013,143.8,143.73,0.65094677]
[1768487992969,20.01260013,143.8,143.73,7.60836606]
[1768487993167,10.7909463,143.78,143.74,0.65094677]
[1768487993399,12.68,143.8,143.74,0.65094677]
[1768487993591,10.7909463,143.78,143.74,0.65094677]
[1768487993890,12.68,143.8,143.74,0.65094677]
[1768487994097,10.7909463,143.78,143.74,0.65094677]
[1768487994908,12.68,143.8,143.75,0.65094677]
[1768487995087,23.4709463,143.8,143.76,0.65094677]
[1768487995680,10.7909463,143.8,143.76,0.65094677]
[1768487995883,23.4709463,143.81,143.76,0.65094677]
[1768487996202,12.68,143.81,143.76,0.65094677]
[1768487996583,23.4709463,143.81,143.76,0.65094677]
[1768487996788,12.68,143.81,143.76,0.65094677]
[1768487996994,12.68,143.81,143.77,7.60650077]
[1768487997173,0.71166998,143.83,143.79,0.65094677]
[1768487997371,0.71166998,143.83,143.8,0.65094677]
[1768487997877,0.71166998,143.83,143.81,10.7909463]
[1768487998080,12.68,143.84,143.82,11.44189307]
[1768487998391,12.68,143.84,143.8,0.65094677]
[1768487998589,12.68,143.84,143.82,10.7909463]
[1768487998981,12.68,143.84,143.8,0.65094677]
[1768487999185,12.68,143.84,143.81,10.7909463]
[1768487999398,12.68,143.84,143.81,10.7609463]
[1768487999619,12.68,143.84,143.83,10.7909463]
[1768487999787,12.68,143.84,143.82,10.7909463]
[1768487999981,12.68,143.84,143.8,0.65094677]
[1768488000186,12.68,143.84,143.77,17.38888502]
[1768488000187,12.68,143.84,143.81,10.7909463]
[1768488000380,12.68,143.84,143.8,7.60501434]
[1768488000580,12.68,143.84,143.82,10.7909463]
[1768488000806,12.68,143.84,143.83,10.7909463]
[1768488001203,11.99279028,143.84,143.82,0.65094677]
[1768488001405,12.68,143.89,143.83,18.3945455]
[1768488001600,13.3775486,143.89,143.85,10.7909463]
[1768488001902,0.6975486,143.89,143.86,10.7909463]
[1768488002082,0.6975486,143.89,143.87,10.7909463]
[1768488002283,1.40921458,143.91,143.85,0.65094677]
[1768488002483,0.6975486,143.9,143.83,7.6035992]
[1768488002686,0.6975486,143.9,143.83,0.65094677]
[1768488002902,0.6975486,143.87,143.79,0.65094677]
[1768488003107,0.6975486,143.87,143.77,18.0390186]
[1768488003108,0.6975486,143.86,143.77,18.0390186]
[1768488003291,0.6975486,143.85,143.77,0.65094677]
[1768488003486,0.6975486,143.85,143.81,10.7909463]
[1768488003686,0.6975486,143.85,143.8,10.7909463]
[1768488004024,0.6975486,143.87,143.83,10.7909463]
[1768488004309,13.3775486,143.9,143.86,10.7909463]
[1768488005202,12.68,143.9,143.86,10.7909463]
[1768488005388,0.71166598,143.91,143.88,10.7909463]
[1768488005888,0.71166598,143.91,143.89,10.7909463]
[1768488006289,0.71166598,143.91,143.87,0.65094677]
[1768488006596,0.71166598,143.91,143.88,10.7909463]
[1768488006791,0.71166598,143.91,143.89,10.7909463]
[1768488007010,0.71166598,143.91,143.86,0.65094677]
[1768488007184,1.40921458,143.91,143.88,10.7909463]
[1768488007387,0.71166598,143.91,143.9,10.7909463]
[1768488007582,0.8975486,143.96,143.9,10.7909463]
[1768488007900,0.6975486,143.95,143.9,10.7909463]
[1768488008080,1.46191957,143.95,143.9,10.7909463]
[1768488008283,0.6975486,143.94,143.87,7.60154514]
[1768488008487,2.02500009,143.94,143.87,0.65094677]
[1768488008805,2.72254869,143.94,143.88,7.60080779]
[1768488009010,2.02500009,143.94,143.88,7.60080779]
[1768488009193,0.72683,143.93,143.91,10.7909463]
[1768488009508,0.72683,143.93,143.92,10.7909463]
[1768488009697,0.72683,143.93,143.91,10.7909463]
[1768488010009,0.72683,143.93,143.86,0.65094677]
[1768488010186,0.6975486,143.92,143.86,0.65094677]
[1768488010385,0.72683,143.93,143.87,6.95061431]
[1768488010584,13.40683,143.93,143.86,0.65094677]
[1768488010803,13.40683,143.93,143.88,10.7909463]
[1768488010804,31.14572196,143.93,143.88,10.7909463]
[1768488011025,10.93310787,143.92,143.86,11.44189307]
[1768488011311,13.40683,143.93,143.87,10.7909463]
[1768488011542,24.1977763,143.93,143.88,10.7909463]
[1768488011692,24.1977763,143.93,143.86,0.65094677]
[1768488011693,31.14576186,143.93,143.87,10.7909463]
[1768488012211,13.40683,143.93,143.88,10.7909463]
[1768488012414,13.40683,143.93,143.89,10.7909463]
[1768488012584,0.72683,143.93,143.9,10.7909463]
[1768488012789,0.72683,143.93,143.91,10.7909463]
[1768488013007,0.72683,143.93,143.86,24.97987513]
[1768488013206,0.72683,143.93,143.92,10.7909463]
[1768488013509,0.72683,143.93,143.91,0.65094677]
[1768488013688,0.72683,143.93,143.91,11.44189307]
[1768488013888,0.72683,143.93,143.92,10.7909463]
[1768488014085,0.06314419,143.93,143.92,0.65094677]
[1768488014315,0.06314419,143.93,143.92,10.7909463]
[1768488014506,0.06314419,143.93,143.9,10.7909463]
[1768488014909,0.06314419,143.93,143.9,17.74021297]
[1768488015094,0.06314419,143.93,143.91,17.7396811]
[1768488015411,0.2,143.96,143.9,10.7909463]
[1768488015715,0.2,143.96,143.86,24.32920894]
[1768488016013,0.2,143.96,143.91,10.7909463]
[1768488016212,0.8975486,143.96,143.91,10.7909463]
[1768488016415,0.2,143.96,143.91,10.7909463]
[1768488016588,0.8975486,143.96,143.91,10.7909463]
[1768488017410,0.8975486,143.96,143.91,11.44189307]
[1768488017614,0.8975486,143.96,143.91,0.65094677]
[1768488017819,0.8975486,143.96,143.91,11.44189307]
[1768488017996,0.8975486,143.96,143.91,18.39061394]
[1768488018191,0.8975486,143.96,143.92,10.7909463]
[1768488018403,0.2,143.96,143.92,0.65094677]
[1768488018596,0.8975486,143.96,143.9,7.60002934]
[1768488018810,0.6975486,143.93,143.87,6.95042075]
[1768488018995,0.6975486,143.91,143.85,0.65094677]